{"text_format":"3","workbook":"xlsx","n_sheets":4,"sheets":["Painel","Orçamento","Configuração","Dados do Gráfico"],"not_rendered":{"charts":2,"images":1,"defined_names":42},"read":"whole","date_system":"1900"}

{"sheet":"Painel","index":0,"n_rows":13,"n_cols":14,"rows_kept":13,"merged":[[2,0,4,2],[6,0,8,2],[10,0,12,2]]}
[{"$nulls":13},{"$f":"\"ORÇAMENTO INTERATIVO \"&NomeOrçamento","v":"ORÇAMENTO INTERATIVO FAMÍLIA NEVES 2012"}]
[]
[{"$f":"'Dados do Gráfico'!C38","v":{"v":4000,"d":"R$ 4,000"}}]
[]
[{"$nulls":3},"renda"]
[]
[{"$f":"'Dados do Gráfico'!C39","v":{"v":5933,"d":"R$ 5,933"}}]
[]
[{"$nulls":3},"despesas"]
[]
[{"$f":"'Dados do Gráfico'!D40& \"R$ \"&'Dados do Gráfico'!C40","v":"-R$ 1933"}]
[]
[{"$nulls":3},"fluxo de caixa"]

{"sheet":"Orçamento","index":1,"n_rows":131,"n_cols":16,"rows_kept":131,"merged":[[18,1,18,13],[27,1,27,13],[36,1,36,13],[45,1,45,13],[54,1,54,13],[61,1,61,13],[68,1,68,13],[75,1,75,13],[82,1,82,13],[89,1,89,13],[96,1,96,13],[103,1,103,13],[110,1,110,13],[117,1,117,13],[124,1,124,13]]}
[null,null,"jan","fev","mar","abr","mai","jun","jul","ago","set","out","nov","dez","ano","média"]
[]
[]
[]
[null,"Saldo inicial",1000]
[null,"Renda total",{"$f":"SUM(tblRenda[jan])","v":4222},{"$f":"SUM(tblRenda[feb])","v":9033},{"$f":"SUM(tblRenda[mar])","v":4000},{"$f":"SUM(tblRenda[apr])","v":4045},{"$f":"SUM(tblRenda[may])","v":9000},{"$f":"SUM(tblRenda[jun])","v":1525},{"$f":"SUM(tblRenda[jul])","v":1500},{"$f":"SUM(tblRenda[aug])","v":6500},{"$f":"SUM(tblRenda[sep])","v":4000},{"$f":"SUM(tblRenda[oct])","v":4000},{"$f":"SUM(tblRenda[nov])","v":9000},{"$f":"SUM(tblRenda[dec])","v":4000},{"$f":"SUM(tblRenda[year])","v":60825},{"$f":"O6/12","v":{"v":5068.75,"d":"5069"}}]
[null,"Despesa total",{"$f":"SUM(tblCategoriaDespesa_01[jan],tblCategoriaDespesa_02[jan],tblCategoriaDespesa_03[jan],tblCategoriaDespesa_04[jan],tblCategoriaDespesa_05[jan],tblCategoriaDespesa_06[jan],tblCategoriaDespesa_07[jan],tblCategoriaDespesa_08[jan],tblCategoriaDespesa_09[jan],tblCategoriaDespesa_10[jan],tblCategoriaDespesa_11[jan],tblCategoriaDespesa_12[jan],tblCategoriaDespesa_13[jan],tblCategoriaDespesa_14[jan],tblCategoriaDespesa_15[jan])","v":7936},{"$f":"SUM(tblCategoriaDespesa_01[feb],tblCategoriaDespesa_02[feb],tblCategoriaDespesa_03[feb],tblCategoriaDespesa_04[feb],tblCategoriaDespesa_05[feb],tblCategoriaDespesa_06[feb],tblCategoriaDespesa_07[feb],tblCategoriaDespesa_08[feb],tblCategoriaDespesa_09[feb],tblCategoriaDespesa_10[feb],tblCategoriaDespesa_11[feb],tblCategoriaDespesa_12[feb],tblCategoriaDespesa_13[feb],tblCategoriaDespesa_14[feb],tblCategoriaDespesa_15[feb])","v":5243},{"$f":"SUM(tblCategoriaDespesa_01[mar],tblCategoriaDespesa_02[mar],tblCategoriaDespesa_03[mar],tblCategoriaDespesa_04[mar],tblCategoriaDespesa_05[mar],tblCategoriaDespesa_06[mar],tblCategoriaDespesa_07[mar],tblCategoriaDespesa_08[mar],tblCategoriaDespesa_09[mar],tblCategoriaDespesa_10[mar],tblCategoriaDespesa_11[mar],tblCategoriaDespesa_12[mar],tblCategoriaDespesa_13[mar],tblCategoriaDespesa_14[mar],tblCategoriaDespesa_15[mar])","v":5933},{"$f":"SUM(tblCategoriaDespesa_01[apr],tblCategoriaDespesa_02[apr],tblCategoriaDespesa_03[apr],tblCategoriaDespesa_04[apr],tblCategoriaDespesa_05[apr],tblCategoriaDespesa_06[apr],tblCategoriaDespesa_07[apr],tblCategoriaDespesa_08[apr],tblCategoriaDespesa_09[apr],tblCategoriaDespesa_10[apr],tblCategoriaDespesa_11[apr],tblCategoriaDespesa_12[apr],tblCategoriaDespesa_13[apr],tblCategoriaDespesa_14[apr],tblCategoriaDespesa_15[apr])","v":5858},{"$f":"SUM(tblCategoriaDespesa_01[may],tblCategoriaDespesa_02[may],tblCategoriaDespesa_03[may],tblCategoriaDespesa_04[may],tblCategoriaDespesa_05[may],tblCategoriaDespesa_06[may],tblCategoriaDespesa_07[may],tblCategoriaDespesa_08[may],tblCategoriaDespesa_09[may],tblCategoriaDespesa_10[may],tblCategoriaDespesa_11[may],tblCategoriaDespesa_12[may],tblCategoriaDespesa_13[may],tblCategoriaDespesa_14[may],tblCategoriaDespesa_15[may])","v":5468},{"$f":"SUM(tblCategoriaDespesa_01[jun],tblCategoriaDespesa_02[jun],tblCategoriaDespesa_03[jun],tblCategoriaDespesa_04[jun],tblCategoriaDespesa_05[jun],tblCategoriaDespesa_06[jun],tblCategoriaDespesa_07[jun],tblCategoriaDespesa_08[jun],tblCategoriaDespesa_09[jun],tblCategoriaDespesa_10[jun],tblCategoriaDespesa_11[jun],tblCategoriaDespesa_12[jun],tblCategoriaDespesa_13[jun],tblCategoriaDespesa_14[jun],tblCategoriaDespesa_15[jun])","v":5118},{"$f":"SUM(tblCategoriaDespesa_01[jul],tblCategoriaDespesa_02[jul],tblCategoriaDespesa_03[jul],tblCategoriaDespesa_04[jul],tblCategoriaDespesa_05[jul],tblCategoriaDespesa_06[jul],tblCategoriaDespesa_07[jul],tblCategoriaDespesa_08[jul],tblCategoriaDespesa_09[jul],tblCategoriaDespesa_10[jul],tblCategoriaDespesa_11[jul],tblCategoriaDespesa_12[jul],tblCategoriaDespesa_13[jul],tblCategoriaDespesa_14[jul],tblCategoriaDespesa_15[jul])","v":5743},{"$f":"SUM(tblCategoriaDespesa_01[aug],tblCategoriaDespesa_02[aug],tblCategoriaDespesa_03[aug],tblCategoriaDespesa_04[aug],tblCategoriaDespesa_05[aug],tblCategoriaDespesa_06[aug],tblCategoriaDespesa_07[aug],tblCategoriaDespesa_08[aug],tblCategoriaDespesa_09[aug],tblCategoriaDespesa_10[aug],tblCategoriaDespesa_11[aug],tblCategoriaDespesa_12[aug],tblCategoriaDespesa_13[aug],tblCategoriaDespesa_14[aug],tblCategoriaDespesa_15[aug])","v":5353},{"$f":"SUM(tblCategoriaDespesa_01[sep],tblCategoriaDespesa_02[sep],tblCategoriaDespesa_03[sep],tblCategoriaDespesa_04[sep],tblCategoriaDespesa_05[sep],tblCategoriaDespesa_06[sep],tblCategoriaDespesa_07[sep],tblCategoriaDespesa_08[sep],tblCategoriaDespesa_09[sep],tblCategoriaDespesa_10[sep],tblCategoriaDespesa_11[sep],tblCategoriaDespesa_12[sep],tblCategoriaDespesa_13[sep],tblCategoriaDespesa_14[sep],tblCategoriaDespesa_15[sep])","v":5983},{"$f":"SUM(tblCategoriaDespesa_01[oct],tblCategoriaDespesa_02[oct],tblCategoriaDespesa_03[oct],tblCategoriaDespesa_04[oct],tblCategoriaDespesa_05[oct],tblCategoriaDespesa_06[oct],tblCategoriaDespesa_07[oct],tblCategoriaDespesa_08[oct],tblCategoriaDespesa_09[oct],tblCategoriaDespesa_10[oct],tblCategoriaDespesa_11[oct],tblCategoriaDespesa_12[oct],tblCategoriaDespesa_13[oct],tblCategoriaDespesa_14[oct],tblCategoriaDespesa_15[oct])","v":5943},{"$f":"SUM(tblCategoriaDespesa_01[nov],tblCategoriaDespesa_02[nov],tblCategoriaDespesa_03[nov],tblCategoriaDespesa_04[nov],tblCategoriaDespesa_05[nov],tblCategoriaDespesa_06[nov],tblCategoriaDespesa_07[nov],tblCategoriaDespesa_08[nov],tblCategoriaDespesa_09[nov],tblCategoriaDespesa_10[nov],tblCategoriaDespesa_11[nov],tblCategoriaDespesa_12[nov],tblCategoriaDespesa_13[nov],tblCategoriaDespesa_14[nov],tblCategoriaDespesa_15[nov])","v":5058},{"$f":"SUM(tblCategoriaDespesa_01[dec],tblCategoriaDespesa_02[dec],tblCategoriaDespesa_03[dec],tblCategoriaDespesa_04[dec],tblCategoriaDespesa_05[dec],tblCategoriaDespesa_06[dec],tblCategoriaDespesa_07[dec],tblCategoriaDespesa_08[dec],tblCategoriaDespesa_09[dec],tblCategoriaDespesa_10[dec],tblCategoriaDespesa_11[dec],tblCategoriaDespesa_12[dec],tblCategoriaDespesa_13[dec],tblCategoriaDespesa_14[dec],tblCategoriaDespesa_15[dec])","v":4958},{"$f":"SUM(tblCategoriaDespesa_01[year],tblCategoriaDespesa_02[year],tblCategoriaDespesa_03[year],tblCategoriaDespesa_04[year],tblCategoriaDespesa_05[year],tblCategoriaDespesa_06[year],tblCategoriaDespesa_07[year],tblCategoriaDespesa_08[year],tblCategoriaDespesa_09[year],tblCategoriaDespesa_10[year],tblCategoriaDespesa_11[year],tblCategoriaDespesa_12[year],tblCategoriaDespesa_13[year],tblCategoriaDespesa_14[year],tblCategoriaDespesa_15[year])","v":68594},{"$f":"O7/12","v":{"v":5716.166666666667,"d":"5716"}}]
[null,"Renda líquida",{"$f":"C6-C7","v":-3714},{"$f":"D6-D7","v":3790},-1933,-1813,3532,-3593,-4243,1147,-1983,-1943,3942,-958,-7769,{"$f":"O8/12","v":{"v":-647.4166666666666,"d":"-647"}}]
[null,"TOTAL DO FLUXO DE CAIXA",{"$f":"C5+C6-C7","v":-2714},{"$f":"C9+D6-D7","v":1076},{"$f":"D9+E6-E7","v":-857},-2670,862,-2731,-6974,-5827,-7810,-9753,-5811,-6769]
[]
[]
[null,"renda"]
[null,"Salário e adicionais",4000,4000,4000,4000,4000,1000,1000,1000,4000,4000,4000,4000,{"$f":"SUM(tblRenda[[#This Row],[jan]:[dec]])","v":39000},{"$f":"tblRenda[[#This Row],[year]]/12","v":3250}]
[null,"renda de juros",222,33,null,45,null,25,{"$nulls":6},{"$f":"SUM(tblRenda[[#This Row],[jan]:[dec]])","v":325},{"$f":"tblRenda[[#This Row],[year]]/12","v":{"v":27.083333333333332,"d":"27"}}]
[null,"dividendos",null,5000,null,null,5000,null,null,5000,null,null,5000,null,{"$f":"SUM(tblRenda[[#This Row],[jan]:[dec]])","v":20000},{"$f":"tblRenda[[#This Row],[year]]/12","v":{"v":1666.6666666666667,"d":"1667"}}]
[null,"devoluções/reembolsos",{"$nulls":5},500,500,500,{"$nulls":4},{"$f":"SUM(tblRenda[[#This Row],[jan]:[dec]])","v":1500},{"$f":"tblRenda[[#This Row],[year]]/12","v":125}]
[null,"outros",{"$nulls":12},{"$f":"SUM(tblRenda[[#This Row],[jan]:[dec]])","v":0},{"$f":"tblRenda[[#This Row],[year]]/12","v":0}]
[null,"RENDA TOTAL",{"$f":"SUM(tblRenda[jan])","v":4222},{"$f":"SUM(tblRenda[feb])","v":9033},{"$f":"SUM(tblRenda[mar])","v":4000},{"$f":"SUM(tblRenda[apr])","v":4045},{"$f":"SUM(tblRenda[may])","v":9000},{"$f":"SUM(tblRenda[jun])","v":1525},{"$f":"SUM(tblRenda[jul])","v":1500},{"$f":"SUM(tblRenda[aug])","v":6500},{"$f":"SUM(tblRenda[sep])","v":4000},{"$f":"SUM(tblRenda[oct])","v":4000},{"$f":"SUM(tblRenda[nov])","v":9000},{"$f":"SUM(tblRenda[dec])","v":4000},{"$f":"SUM(tblRenda[year])","v":60825},{"$f":"tblRenda[[#Totals],[year]]/12","v":{"v":5068.75,"d":"5069"}}]
[]
[]
[null,"casa"]
[null,"hipoteca/aluguel",850,850,850,850,850,850,850,850,850,850,900,900,{"$f":"SUM(tblCategoriaDespesa_01[[#This Row],[jan]:[dec]])","v":10300},{"$f":"tblCategoriaDespesa_01[[#This Row],[year]]/12","v":{"v":858.3333333333334,"d":"858"}}]
[null,"luz",200,200,175,150,150,175,225,275,200,150,150,150,{"$f":"SUM(tblCategoriaDespesa_01[[#This Row],[jan]:[dec]])","v":2200},{"$f":"tblCategoriaDespesa_01[[#This Row],[year]]/12","v":{"v":183.33333333333334,"d":"183"}}]
[null,"telefone",50,50,100,100,50,50,100,100,50,50,50,50,{"$f":"SUM(tblCategoriaDespesa_01[[#This Row],[jan]:[dec]])","v":800},{"$f":"tblCategoriaDespesa_01[[#This Row],[year]]/12","v":{"v":66.66666666666667,"d":"67"}}]
[null,"TV a cabo/satélite",69,69,69,69,69,69,69,69,69,69,69,69,{"$f":"SUM(tblCategoriaDespesa_01[[#This Row],[jan]:[dec]])","v":828},{"$f":"tblCategoriaDespesa_01[[#This Row],[year]]/12","v":69}]
[null,"Internet",39,39,39,39,39,39,39,39,39,39,39,39,{"$f":"SUM(tblCategoriaDespesa_01[[#This Row],[jan]:[dec]])","v":468},{"$f":"tblCategoriaDespesa_01[[#This Row],[year]]/12","v":39}]
[null,{"$f":"UPPER(\"Total \" & B21)","v":"TOTAL CASA"},{"$f":"SUM(tblCategoriaDespesa_01[jan])","v":1208},{"$f":"SUM(tblCategoriaDespesa_01[feb])","v":1208},{"$f":"SUM(tblCategoriaDespesa_01[mar])","v":1233},{"$f":"SUM(tblCategoriaDespesa_01[apr])","v":1208},{"$f":"SUM(tblCategoriaDespesa_01[may])","v":1158},{"$f":"SUM(tblCategoriaDespesa_01[jun])","v":1183},{"$f":"SUM(tblCategoriaDespesa_01[jul])","v":1283},{"$f":"SUM(tblCategoriaDespesa_01[aug])","v":1333},{"$f":"SUM(tblCategoriaDespesa_01[sep])","v":1208},{"$f":"SUM(tblCategoriaDespesa_01[oct])","v":1158},{"$f":"SUM(tblCategoriaDespesa_01[nov])","v":1208},{"$f":"SUM(tblCategoriaDespesa_01[dec])","v":1208},{"$f":"SUM(tblCategoriaDespesa_01[year])","v":14596},{"$f":"tblCategoriaDespesa_01[[#Totals],[year]]/12","v":{"v":1216.3333333333333,"d":"1216"}}]
[]
[]
[null,"despesas diárias"]
[null,"mantimentos",345,250,200,400,350,250,400,350,250,400,350,250,{"$f":"SUM(tblCategoriaDespesa_02[[#This Row],[jan]:[dec]])","v":3795},{"$f":"tblCategoriaDespesa_02[[#This Row],[year]]/12","v":{"v":316.25,"d":"316"}}]
[null,"vestuário",300,null,null,300,null,null,300,null,null,300,null,null,{"$f":"SUM(tblCategoriaDespesa_02[[#This Row],[jan]:[dec]])","v":1200},{"$f":"tblCategoriaDespesa_02[[#This Row],[year]]/12","v":100}]
[null,"restaurantes",125,125,300,125,125,200,125,125,125,125,125,125,{"$f":"SUM(tblCategoriaDespesa_02[[#This Row],[jan]:[dec]])","v":1750},{"$f":"tblCategoriaDespesa_02[[#This Row],[year]]/12","v":{"v":145.83333333333334,"d":"146"}}]
[null,"cabeleireiro/barbeiro",25,null,50,null,25,null,50,null,25,null,100,null,{"$f":"SUM(tblCategoriaDespesa_02[[#This Row],[jan]:[dec]])","v":275},{"$f":"tblCategoriaDespesa_02[[#This Row],[year]]/12","v":{"v":22.916666666666668,"d":"23"}}]
[null,"outros",{"$nulls":12},{"$f":"SUM(tblCategoriaDespesa_02[[#This Row],[jan]:[dec]])","v":0},{"$f":"tblCategoriaDespesa_02[[#This Row],[year]]/12","v":0}]
[null,{"$f":"UPPER(\"Total \" & B30)","v":"TOTAL DESPESAS DIÁRIAS"},{"$f":"SUM(tblCategoriaDespesa_02[jan])","v":795},{"$f":"SUM(tblCategoriaDespesa_02[feb])","v":375},{"$f":"SUM(tblCategoriaDespesa_02[mar])","v":550},{"$f":"SUM(tblCategoriaDespesa_02[apr])","v":825},{"$f":"SUM(tblCategoriaDespesa_02[may])","v":500},{"$f":"SUM(tblCategoriaDespesa_02[jun])","v":450},{"$f":"SUM(tblCategoriaDespesa_02[jul])","v":875},{"$f":"SUM(tblCategoriaDespesa_02[aug])","v":475},{"$f":"SUM(tblCategoriaDespesa_02[sep])","v":400},{"$f":"SUM(tblCategoriaDespesa_02[oct])","v":825},{"$f":"SUM(tblCategoriaDespesa_02[nov])","v":575},{"$f":"SUM(tblCategoriaDespesa_02[dec])","v":375},{"$f":"SUM(tblCategoriaDespesa_02[year])","v":7020},{"$f":"tblCategoriaDespesa_02[[#Totals],[year]]/12","v":585}]
[]
[]
[null,"filhos"]
[null,"material escolar",123,null,100,{"$nulls":4},345,{"$nulls":4},{"$f":"SUM(tblCategoriaDespesa_03[[#This Row],[jan]:[dec]])","v":568},{"$f":"tblCategoriaDespesa_03[[#This Row],[year]]/12","v":{"v":47.333333333333336,"d":"47"}}]
[null,"vestuário",null,100,null,null,100,{"$nulls":3},100,null,null,100,{"$f":"SUM(tblCategoriaDespesa_03[[#This Row],[jan]:[dec]])","v":400},{"$f":"tblCategoriaDespesa_03[[#This Row],[year]]/12","v":{"v":33.333333333333336,"d":"33"}}]
[null,"merenda escolar",50,50,50,50,50,50,null,null,50,50,50,50,{"$f":"SUM(tblCategoriaDespesa_03[[#This Row],[jan]:[dec]])","v":500},{"$f":"tblCategoriaDespesa_03[[#This Row],[year]]/12","v":{"v":41.666666666666664,"d":"42"}}]
[null,"médico",200,200,200,200,200,200,200,200,200,200,200,200,{"$f":"SUM(tblCategoriaDespesa_03[[#This Row],[jan]:[dec]])","v":2400},{"$f":"tblCategoriaDespesa_03[[#This Row],[year]]/12","v":200}]
[null,"outros",2000,150,{"$nulls":3},200,{"$nulls":3},100,null,null,{"$f":"SUM(tblCategoriaDespesa_03[[#This Row],[jan]:[dec]])","v":2450},{"$f":"tblCategoriaDespesa_03[[#This Row],[year]]/12","v":{"v":204.16666666666666,"d":"204"}}]
[null,{"$f":"UPPER(\"Total \" & B39)","v":"TOTAL FILHOS"},{"$f":"SUM(tblCategoriaDespesa_03[jan])","v":2373},{"$f":"SUM(tblCategoriaDespesa_03[feb])","v":500},{"$f":"SUM(tblCategoriaDespesa_03[mar])","v":350},{"$f":"SUM(tblCategoriaDespesa_03[apr])","v":250},{"$f":"SUM(tblCategoriaDespesa_03[may])","v":350},{"$f":"SUM(tblCategoriaDespesa_03[jun])","v":450},{"$f":"SUM(tblCategoriaDespesa_03[jul])","v":200},{"$f":"SUM(tblCategoriaDespesa_03[aug])","v":545},{"$f":"SUM(tblCategoriaDespesa_03[sep])","v":350},{"$f":"SUM(tblCategoriaDespesa_03[oct])","v":350},{"$f":"SUM(tblCategoriaDespesa_03[nov])","v":250},{"$f":"SUM(tblCategoriaDespesa_03[dec])","v":350},{"$f":"SUM(tblCategoriaDespesa_03[year])","v":6318},{"$f":"tblCategoriaDespesa_03[[#Totals],[year]]/12","v":{"v":526.5,"d":"527"}}]
[]
[]
[null,"transporte"]
[null,"financiamento do automóvel",600,600,600,600,600,600,600,600,600,600,600,600,{"$f":"SUM(tblCategoriaDespesa_04[[#This Row],[jan]:[dec]])","v":7200},{"$f":"tblCategoriaDespesa_04[[#This Row],[year]]/12","v":600}]
[null,"combustível",325,325,325,325,325,500,500,500,325,325,325,325,{"$f":"SUM(tblCategoriaDespesa_04[[#This Row],[jan]:[dec]])","v":4425},{"$f":"tblCategoriaDespesa_04[[#This Row],[year]]/12","v":{"v":368.75,"d":"369"}}]
[null,"combustível",null,100,null,100,null,100,null,100,null,100,null,null,{"$f":"SUM(tblCategoriaDespesa_04[[#This Row],[jan]:[dec]])","v":500},{"$f":"tblCategoriaDespesa_04[[#This Row],[year]]/12","v":{"v":41.666666666666664,"d":"42"}}]
[null,"licenciamento/IPVA",185,{"$nulls":7},225,{"$nulls":3},{"$f":"SUM(tblCategoriaDespesa_04[[#This Row],[jan]:[dec]])","v":410},{"$f":"tblCategoriaDespesa_04[[#This Row],[year]]/12","v":{"v":34.166666666666664,"d":"34"}}]
[null,"outros",{"$nulls":4},400,{"$nulls":7},{"$f":"SUM(tblCategoriaDespesa_04[[#This Row],[jan]:[dec]])","v":400},{"$f":"tblCategoriaDespesa_04[[#This Row],[year]]/12","v":{"v":33.333333333333336,"d":"33"}}]
[null,{"$f":"UPPER(\"Total \" & B48)","v":"TOTAL TRANSPORTE"},{"$f":"SUM(tblCategoriaDespesa_04[jan])","v":1110},{"$f":"SUM(tblCategoriaDespesa_04[feb])","v":1025},{"$f":"SUM(tblCategoriaDespesa_04[mar])","v":925},{"$f":"SUM(tblCategoriaDespesa_04[apr])","v":1025},{"$f":"SUM(tblCategoriaDespesa_04[may])","v":1325},{"$f":"SUM(tblCategoriaDespesa_04[jun])","v":1200},{"$f":"SUM(tblCategoriaDespesa_04[jul])","v":1100},{"$f":"SUM(tblCategoriaDespesa_04[aug])","v":1200},{"$f":"SUM(tblCategoriaDespesa_04[sep])","v":1150},{"$f":"SUM(tblCategoriaDespesa_04[oct])","v":1025},{"$f":"SUM(tblCategoriaDespesa_04[nov])","v":925},{"$f":"SUM(tblCategoriaDespesa_04[dec])","v":925},{"$f":"SUM(tblCategoriaDespesa_04[year])","v":12935},{"$f":"tblCategoriaDespesa_04[[#Totals],[year]]/12","v":{"v":1077.9166666666667,"d":"1078"}}]
[]
[]
[null,"saúde"]
[null,"médico/dentista",null,35,null,null,35,35,35,null,null,35,null,null,{"$f":"SUM(tblCategoriaDespesa_05[[#This Row],[jan]:[dec]])","v":175},{"$f":"tblCategoriaDespesa_05[[#This Row],[year]]/12","v":{"v":14.583333333333334,"d":"15"}}]
[null,"remédios",25,25,25,25,25,25,25,25,25,25,25,25,{"$f":"SUM(tblCategoriaDespesa_05[[#This Row],[jan]:[dec]])","v":300},{"$f":"tblCategoriaDespesa_05[[#This Row],[year]]/12","v":25}]
[null,"outros",null,null,150,{"$nulls":5},150,{"$nulls":3},{"$f":"SUM(tblCategoriaDespesa_05[[#This Row],[jan]:[dec]])","v":300},{"$f":"tblCategoriaDespesa_05[[#This Row],[year]]/12","v":25}]
[null,{"$f":"UPPER(\"Total \" & B57)","v":"TOTAL SAÚDE"},{"$f":"SUM(tblCategoriaDespesa_05[jan])","v":25},{"$f":"SUM(tblCategoriaDespesa_05[feb])","v":60},{"$f":"SUM(tblCategoriaDespesa_05[mar])","v":175},{"$f":"SUM(tblCategoriaDespesa_05[apr])","v":25},{"$f":"SUM(tblCategoriaDespesa_05[may])","v":60},{"$f":"SUM(tblCategoriaDespesa_05[jun])","v":60},{"$f":"SUM(tblCategoriaDespesa_05[jul])","v":60},{"$f":"SUM(tblCategoriaDespesa_05[aug])","v":25},{"$f":"SUM(tblCategoriaDespesa_05[sep])","v":175},{"$f":"SUM(tblCategoriaDespesa_05[oct])","v":60},{"$f":"SUM(tblCategoriaDespesa_05[nov])","v":25},{"$f":"SUM(tblCategoriaDespesa_05[dec])","v":25},{"$f":"SUM(tblCategoriaDespesa_05[year])","v":775},{"$f":"tblCategoriaDespesa_05[[#Totals],[year]]/12","v":{"v":64.58333333333333,"d":"65"}}]
[]
[]
[null,"seguro"]
[null,"automóvel",150,150,150,150,150,150,150,150,150,150,150,150,{"$f":"SUM(tblCategoriaDespesa_06[[#This Row],[jan]:[dec]])","v":1800},{"$f":"tblCategoriaDespesa_06[[#This Row],[year]]/12","v":150}]
[null,"saúde",675,675,675,675,675,675,675,675,675,675,675,675,{"$f":"SUM(tblCategoriaDespesa_06[[#This Row],[jan]:[dec]])","v":8100},{"$f":"tblCategoriaDespesa_06[[#This Row],[year]]/12","v":675}]
[null,"vida",150,150,150,150,150,150,150,150,150,150,150,150,{"$f":"SUM(tblCategoriaDespesa_06[[#This Row],[jan]:[dec]])","v":1800},{"$f":"tblCategoriaDespesa_06[[#This Row],[year]]/12","v":150}]
[null,{"$f":"UPPER(\"Total \" & B64)","v":"TOTAL SEGURO"},{"$f":"SUM(tblCategoriaDespesa_06[jan])","v":975},{"$f":"SUM(tblCategoriaDespesa_06[feb])","v":975},{"$f":"SUM(tblCategoriaDespesa_06[mar])","v":975},{"$f":"SUM(tblCategoriaDespesa_06[apr])","v":975},{"$f":"SUM(tblCategoriaDespesa_06[may])","v":975},{"$f":"SUM(tblCategoriaDespesa_06[jun])","v":975},{"$f":"SUM(tblCategoriaDespesa_06[jul])","v":975},{"$f":"SUM(tblCategoriaDespesa_06[aug])","v":975},{"$f":"SUM(tblCategoriaDespesa_06[sep])","v":975},{"$f":"SUM(tblCategoriaDespesa_06[oct])","v":975},{"$f":"SUM(tblCategoriaDespesa_06[nov])","v":975},{"$f":"SUM(tblCategoriaDespesa_06[dec])","v":975},{"$f":"SUM(tblCategoriaDespesa_06[year])","v":11700},{"$f":"tblCategoriaDespesa_06[[#Totals],[year]]/12","v":975}]
[]
[]
[null,"educação"]
[null,"mensalidade",null,null,400,{"$nulls":5},400,{"$nulls":3},{"$f":"SUM(tblCategoriaDespesa_07[[#This Row],[jan]:[dec]])","v":800},{"$f":"tblCategoriaDespesa_07[[#This Row],[year]]/12","v":{"v":66.66666666666667,"d":"67"}}]
[null,"livros",null,null,225,{"$nulls":5},225,{"$nulls":3},{"$f":"SUM(tblCategoriaDespesa_07[[#This Row],[jan]:[dec]])","v":450},{"$f":"tblCategoriaDespesa_07[[#This Row],[year]]/12","v":{"v":37.5,"d":"38"}}]
[null,"outros",{"$nulls":12},{"$f":"SUM(tblCategoriaDespesa_07[[#This Row],[jan]:[dec]])","v":0},{"$f":"tblCategoriaDespesa_07[[#This Row],[year]]/12","v":0}]
[null,{"$f":"UPPER(\"Total \" & B71)","v":"TOTAL EDUCAÇÃO"},{"$f":"SUM(tblCategoriaDespesa_07[jan])","v":0},{"$f":"SUM(tblCategoriaDespesa_07[feb])","v":0},{"$f":"SUM(tblCategoriaDespesa_07[mar])","v":625},{"$f":"SUM(tblCategoriaDespesa_07[apr])","v":0},{"$f":"SUM(tblCategoriaDespesa_07[may])","v":0},{"$f":"SUM(tblCategoriaDespesa_07[jun])","v":0},{"$f":"SUM(tblCategoriaDespesa_07[jul])","v":0},{"$f":"SUM(tblCategoriaDespesa_07[aug])","v":0},{"$f":"SUM(tblCategoriaDespesa_07[sep])","v":625},{"$f":"SUM(tblCategoriaDespesa_07[oct])","v":0},{"$f":"SUM(tblCategoriaDespesa_07[nov])","v":0},{"$f":"SUM(tblCategoriaDespesa_07[dec])","v":0},{"$f":"SUM(tblCategoriaDespesa_07[year])","v":1250},{"$f":"tblCategoriaDespesa_07[[#Totals],[year]]/12","v":{"v":104.16666666666667,"d":"104"}}]
[]
[]
[null,"caridade"]
[null,"presentes",null,100,{"$nulls":3},100,{"$nulls":3},100,null,null,{"$f":"SUM(tblCategoriaDespesa_08[[#This Row],[jan]:[dec]])","v":300},{"$f":"tblCategoriaDespesa_08[[#This Row],[year]]/12","v":25}]
[null,"doações",null,null,100,null,100,null,100,null,100,null,100,null,{"$f":"SUM(tblCategoriaDespesa_08[[#This Row],[jan]:[dec]])","v":500},{"$f":"tblCategoriaDespesa_08[[#This Row],[year]]/12","v":{"v":41.666666666666664,"d":"42"}}]
[null,"outros",{"$nulls":3},100,{"$nulls":3},100,{"$nulls":3},100,{"$f":"SUM(tblCategoriaDespesa_08[[#This Row],[jan]:[dec]])","v":300},{"$f":"tblCategoriaDespesa_08[[#This Row],[year]]/12","v":25}]
[null,{"$f":"UPPER(\"Total \" & B78)","v":"TOTAL CARIDADE"},{"$f":"SUM(tblCategoriaDespesa_08[jan])","v":0},{"$f":"SUM(tblCategoriaDespesa_08[feb])","v":100},{"$f":"SUM(tblCategoriaDespesa_08[mar])","v":100},{"$f":"SUM(tblCategoriaDespesa_08[apr])","v":100},{"$f":"SUM(tblCategoriaDespesa_08[may])","v":100},{"$f":"SUM(tblCategoriaDespesa_08[jun])","v":100},{"$f":"SUM(tblCategoriaDespesa_08[jul])","v":100},{"$f":"SUM(tblCategoriaDespesa_08[aug])","v":100},{"$f":"SUM(tblCategoriaDespesa_08[sep])","v":100},{"$f":"SUM(tblCategoriaDespesa_08[oct])","v":100},{"$f":"SUM(tblCategoriaDespesa_08[nov])","v":100},{"$f":"SUM(tblCategoriaDespesa_08[dec])","v":100},{"$f":"SUM(tblCategoriaDespesa_08[year])","v":1100},{"$f":"tblCategoriaDespesa_08[[#Totals],[year]]/12","v":{"v":91.66666666666667,"d":"92"}}]
[]
[]
[null,"poupança"]
[null,"fundo de emergência",100,100,100,100,100,{"$nulls":3},100,100,100,100,{"$f":"SUM(tblCategoriaDespesa_09[[#This Row],[jan]:[dec]])","v":900},{"$f":"tblCategoriaDespesa_09[[#This Row],[year]]/12","v":75}]
[null,"aposentadoria (fundos, INSS)",500,500,500,500,500,500,500,500,500,500,500,500,{"$f":"SUM(tblCategoriaDespesa_09[[#This Row],[jan]:[dec]])","v":6000},{"$f":"tblCategoriaDespesa_09[[#This Row],[year]]/12","v":500}]
[null,"transferência para poupança",200,200,200,200,200,{"$nulls":3},200,200,200,200,{"$f":"SUM(tblCategoriaDespesa_09[[#This Row],[jan]:[dec]])","v":1800},{"$f":"tblCategoriaDespesa_09[[#This Row],[year]]/12","v":150}]
[null,{"$f":"UPPER(\"Total \" & B85)","v":"TOTAL POUPANÇA"},{"$f":"SUM(tblCategoriaDespesa_09[jan])","v":800},{"$f":"SUM(tblCategoriaDespesa_09[feb])","v":800},{"$f":"SUM(tblCategoriaDespesa_09[mar])","v":800},{"$f":"SUM(tblCategoriaDespesa_09[apr])","v":800},{"$f":"SUM(tblCategoriaDespesa_09[may])","v":800},{"$f":"SUM(tblCategoriaDespesa_09[jun])","v":500},{"$f":"SUM(tblCategoriaDespesa_09[jul])","v":500},{"$f":"SUM(tblCategoriaDespesa_09[aug])","v":500},{"$f":"SUM(tblCategoriaDespesa_09[sep])","v":800},{"$f":"SUM(tblCategoriaDespesa_09[oct])","v":800},{"$f":"SUM(tblCategoriaDespesa_09[nov])","v":800},{"$f":"SUM(tblCategoriaDespesa_09[dec])","v":800},{"$f":"SUM(tblCategoriaDespesa_09[year])","v":8700},{"$f":"tblCategoriaDespesa_09[[#Totals],[year]]/12","v":725}]
[]
[]
[null,"obrigações"]
[null,"cartão de crédito nº 1",145,145,145,145,145,145,145,145,145,145,145,145,{"$f":"SUM(tblCategoriaDespesa_10[[#This Row],[jan]:[dec]])","v":1740},{"$f":"tblCategoriaDespesa_10[[#This Row],[year]]/12","v":145}]
[null,"impostos federais",450,null,null,450,null,null,450,null,null,450,null,null,{"$f":"SUM(tblCategoriaDespesa_10[[#This Row],[jan]:[dec]])","v":1800},{"$f":"tblCategoriaDespesa_10[[#This Row],[year]]/12","v":150}]
[null,"empréstimo estudantil",55,55,55,55,55,55,55,55,55,55,55,55,{"$f":"SUM(tblCategoriaDespesa_10[[#This Row],[jan]:[dec]])","v":660},{"$f":"tblCategoriaDespesa_10[[#This Row],[year]]/12","v":55}]
[null,{"$f":"UPPER(\"Total \" & B92)","v":"TOTAL OBRIGAÇÕES"},{"$f":"SUM(tblCategoriaDespesa_10[jan])","v":650},{"$f":"SUM(tblCategoriaDespesa_10[feb])","v":200},{"$f":"SUM(tblCategoriaDespesa_10[mar])","v":200},{"$f":"SUM(tblCategoriaDespesa_10[apr])","v":650},{"$f":"SUM(tblCategoriaDespesa_10[may])","v":200},{"$f":"SUM(tblCategoriaDespesa_10[jun])","v":200},{"$f":"SUM(tblCategoriaDespesa_10[jul])","v":650},{"$f":"SUM(tblCategoriaDespesa_10[aug])","v":200},{"$f":"SUM(tblCategoriaDespesa_10[sep])","v":200},{"$f":"SUM(tblCategoriaDespesa_10[oct])","v":650},{"$f":"SUM(tblCategoriaDespesa_10[nov])","v":200},{"$f":"SUM(tblCategoriaDespesa_10[dec])","v":200},{"$f":"SUM(tblCategoriaDespesa_10[year])","v":4200},{"$f":"tblCategoriaDespesa_10[[#Totals],[year]]/12","v":350}]
[]
[]
[null," "]
[{"$nulls":14},{"$f":"SUM(tblCategoriaDespesa_11[[#This Row],[jan]:[dec]])","v":0},{"$f":"tblCategoriaDespesa_11[[#This Row],[year]]/12","v":0}]
[{"$nulls":14},{"$f":"SUM(tblCategoriaDespesa_11[[#This Row],[jan]:[dec]])","v":0},{"$f":"tblCategoriaDespesa_11[[#This Row],[year]]/12","v":0}]
[{"$nulls":14},{"$f":"SUM(tblCategoriaDespesa_11[[#This Row],[jan]:[dec]])","v":0},{"$f":"tblCategoriaDespesa_11[[#This Row],[year]]/12","v":0}]
[null,{"$f":"UPPER(\"Total \" & B99)","v":"TOTAL  "},{"$f":"SUM(tblCategoriaDespesa_11[jan])","v":0},{"$f":"SUM(tblCategoriaDespesa_11[feb])","v":0},{"$f":"SUM(tblCategoriaDespesa_11[mar])","v":0},{"$f":"SUM(tblCategoriaDespesa_11[apr])","v":0},{"$f":"SUM(tblCategoriaDespesa_11[may])","v":0},{"$f":"SUM(tblCategoriaDespesa_11[jun])","v":0},{"$f":"SUM(tblCategoriaDespesa_11[jul])","v":0},{"$f":"SUM(tblCategoriaDespesa_11[aug])","v":0},{"$f":"SUM(tblCategoriaDespesa_11[sep])","v":0},{"$f":"SUM(tblCategoriaDespesa_11[oct])","v":0},{"$f":"SUM(tblCategoriaDespesa_11[nov])","v":0},{"$f":"SUM(tblCategoriaDespesa_11[dec])","v":0},{"$f":"SUM(tblCategoriaDespesa_11[year])","v":0},{"$f":"tblCategoriaDespesa_11[[#Totals],[year]]/12","v":0}]
[]
[]
[null," "]
[{"$nulls":14},{"$f":"SUM(tblCategoriaDespesa_12[[#This Row],[jan]:[dec]])","v":0},{"$f":"tblCategoriaDespesa_12[[#This Row],[year]]/12","v":0}]
[{"$nulls":14},{"$f":"SUM(tblCategoriaDespesa_12[[#This Row],[jan]:[dec]])","v":0},{"$f":"tblCategoriaDespesa_12[[#This Row],[year]]/12","v":0}]
[{"$nulls":14},{"$f":"SUM(tblCategoriaDespesa_12[[#This Row],[jan]:[dec]])","v":0},{"$f":"tblCategoriaDespesa_12[[#This Row],[year]]/12","v":0}]
[null,{"$f":"UPPER(\"Total \" & B106)","v":"TOTAL  "},{"$f":"SUM(tblCategoriaDespesa_12[jan])","v":0},{"$f":"SUM(tblCategoriaDespesa_12[feb])","v":0},{"$f":"SUM(tblCategoriaDespesa_12[mar])","v":0},{"$f":"SUM(tblCategoriaDespesa_12[apr])","v":0},{"$f":"SUM(tblCategoriaDespesa_12[may])","v":0},{"$f":"SUM(tblCategoriaDespesa_12[jun])","v":0},{"$f":"SUM(tblCategoriaDespesa_12[jul])","v":0},{"$f":"SUM(tblCategoriaDespesa_12[aug])","v":0},{"$f":"SUM(tblCategoriaDespesa_12[sep])","v":0},{"$f":"SUM(tblCategoriaDespesa_12[oct])","v":0},{"$f":"SUM(tblCategoriaDespesa_12[nov])","v":0},{"$f":"SUM(tblCategoriaDespesa_12[dec])","v":0},{"$f":"SUM(tblCategoriaDespesa_12[year])","v":0},{"$f":"tblCategoriaDespesa_12[[#Totals],[year]]/12","v":0}]
[]
[]
[null," "]
[{"$nulls":14},{"$f":"SUM(tblCategoriaDespesa_13[[#This Row],[jan]:[dec]])","v":0},{"$f":"tblCategoriaDespesa_13[[#This Row],[year]]/12","v":0}]
[{"$nulls":14},{"$f":"SUM(tblCategoriaDespesa_13[[#This Row],[jan]:[dec]])","v":0},{"$f":"tblCategoriaDespesa_13[[#This Row],[year]]/12","v":0}]
[{"$nulls":14},{"$f":"SUM(tblCategoriaDespesa_13[[#This Row],[jan]:[dec]])","v":0},{"$f":"tblCategoriaDespesa_13[[#This Row],[year]]/12","v":0}]
[null,{"$f":"UPPER(\"Total \" & B113)","v":"TOTAL  "},{"$f":"SUM(tblCategoriaDespesa_13[jan])","v":0},{"$f":"SUM(tblCategoriaDespesa_13[feb])","v":0},{"$f":"SUM(tblCategoriaDespesa_13[mar])","v":0},{"$f":"SUM(tblCategoriaDespesa_13[apr])","v":0},{"$f":"SUM(tblCategoriaDespesa_13[may])","v":0},{"$f":"SUM(tblCategoriaDespesa_13[jun])","v":0},{"$f":"SUM(tblCategoriaDespesa_13[jul])","v":0},{"$f":"SUM(tblCategoriaDespesa_13[aug])","v":0},{"$f":"SUM(tblCategoriaDespesa_13[sep])","v":0},{"$f":"SUM(tblCategoriaDespesa_13[oct])","v":0},{"$f":"SUM(tblCategoriaDespesa_13[nov])","v":0},{"$f":"SUM(tblCategoriaDespesa_13[dec])","v":0},{"$f":"SUM(tblCategoriaDespesa_13[year])","v":0},{"$f":"tblCategoriaDespesa_13[[#Totals],[year]]/12","v":0}]
[]
[]
[null," "]
[{"$nulls":14},{"$f":"SUM(tblCategoriaDespesa_14[[#This Row],[jan]:[dec]])","v":0},{"$f":"tblCategoriaDespesa_14[[#This Row],[year]]/12","v":0}]
[{"$nulls":14},{"$f":"SUM(tblCategoriaDespesa_14[[#This Row],[jan]:[dec]])","v":0},{"$f":"tblCategoriaDespesa_14[[#This Row],[year]]/12","v":0}]
[{"$nulls":14},{"$f":"SUM(tblCategoriaDespesa_14[[#This Row],[jan]:[dec]])","v":0},{"$f":"tblCategoriaDespesa_14[[#This Row],[year]]/12","v":0}]
[null,{"$f":"UPPER(\"Total \" & B120)","v":"TOTAL  "},{"$f":"SUM(tblCategoriaDespesa_14[jan])","v":0},{"$f":"SUM(tblCategoriaDespesa_14[feb])","v":0},{"$f":"SUM(tblCategoriaDespesa_14[mar])","v":0},{"$f":"SUM(tblCategoriaDespesa_14[apr])","v":0},{"$f":"SUM(tblCategoriaDespesa_14[may])","v":0},{"$f":"SUM(tblCategoriaDespesa_14[jun])","v":0},{"$f":"SUM(tblCategoriaDespesa_14[jul])","v":0},{"$f":"SUM(tblCategoriaDespesa_14[aug])","v":0},{"$f":"SUM(tblCategoriaDespesa_14[sep])","v":0},{"$f":"SUM(tblCategoriaDespesa_14[oct])","v":0},{"$f":"SUM(tblCategoriaDespesa_14[nov])","v":0},{"$f":"SUM(tblCategoriaDespesa_14[dec])","v":0},{"$f":"SUM(tblCategoriaDespesa_14[year])","v":0},{"$f":"tblCategoriaDespesa_14[[#Totals],[year]]/12","v":0}]
[]
[]
[null," "]
[{"$nulls":14},{"$f":"SUM(tblCategoriaDespesa_15[[#This Row],[jan]:[dec]])","v":0},{"$f":"tblCategoriaDespesa_15[[#This Row],[year]]/12","v":0}]
[{"$nulls":14},{"$f":"SUM(tblCategoriaDespesa_15[[#This Row],[jan]:[dec]])","v":0},{"$f":"tblCategoriaDespesa_15[[#This Row],[year]]/12","v":0}]
[{"$nulls":14},{"$f":"SUM(tblCategoriaDespesa_15[[#This Row],[jan]:[dec]])","v":0},{"$f":"tblCategoriaDespesa_15[[#This Row],[year]]/12","v":0}]
[null,{"$f":"UPPER(\"Total \" & B127)","v":"TOTAL  "},{"$f":"SUM(tblCategoriaDespesa_15[jan])","v":0},{"$f":"SUM(tblCategoriaDespesa_15[feb])","v":0},{"$f":"SUM(tblCategoriaDespesa_15[mar])","v":0},{"$f":"SUM(tblCategoriaDespesa_15[apr])","v":0},{"$f":"SUM(tblCategoriaDespesa_15[may])","v":0},{"$f":"SUM(tblCategoriaDespesa_15[jun])","v":0},{"$f":"SUM(tblCategoriaDespesa_15[jul])","v":0},{"$f":"SUM(tblCategoriaDespesa_15[aug])","v":0},{"$f":"SUM(tblCategoriaDespesa_15[sep])","v":0},{"$f":"SUM(tblCategoriaDespesa_15[oct])","v":0},{"$f":"SUM(tblCategoriaDespesa_15[nov])","v":0},{"$f":"SUM(tblCategoriaDespesa_15[dec])","v":0},{"$f":"SUM(tblCategoriaDespesa_15[year])","v":0},{"$f":"tblCategoriaDespesa_15[[#Totals],[year]]/12","v":0}]

{"sheet":"Configuração","index":2,"n_rows":59,"n_cols":10,"rows_kept":59}
[null,"FAMÍLIA NEVES 2012"]
[null,"renda",null,"despesas"]
[null,"Salário e adicionais",null," "]
[null,"renda de juros",null,"casa",null,"casa",null,"despesas diárias",null,"filhos"]
[null,"dividendos",null,"despesas diárias",null,"hipoteca/aluguel",null,"mantimentos",null,"médico"]
[null,"presentes recebidos",null,"filhos",null,"luz",null,"suprimentos pessoais",null,"vestuário"]
[null,"devoluções/reembolsos",null,"transporte",null,"gás",null,"vestuário",null,"mensalidade da escola"]
[null,"transferência da poupança",null,"saúde",null,"água/esgoto",null,"serviços de limpeza",null,"merenda escolar"]
[null,"outros",null,"seguro",null,"telefone",null,"restaurantes",null,"material escolar"]
[{"$nulls":3},"educação",null,"TV a cabo/satélite",null,"lavanderia",null,"babá"]
[{"$nulls":3},"caridade",null,"Internet",null,"cabeleireiro/barbeiro",null,"brinquedos e jogos"]
[{"$nulls":3},"poupança",null,"móveis/eletrodomésticos",null,"outros",null,"outros"]
[{"$nulls":3},"obrigações",null,"jardim"]
[{"$nulls":3},"diversão",null,"suprimentos domésticos"]
[{"$nulls":3},"animais de estimação",null,"manutenção"]
[{"$nulls":3},"assinaturas",null,"melhorias"]
[{"$nulls":3},"férias",null,"outros"]
[{"$nulls":3},"diversos"]
[]
[{"$nulls":5},"transporte",null,"saúde",null,"seguro"]
[{"$nulls":5},"financiamento do automóvel",null,"médico/dentista",null,"automóvel"]
[{"$nulls":5},"combustível",null,"remédios",null,"saúde"]
[{"$nulls":5},"transporte público",null,"academia",null,"casa/aluguel"]
[{"$nulls":5},"consertos",null,"emergência",null,"vida"]
[{"$nulls":5},"licenciamento/IPVA",null,"outros",null,"outros"]
[{"$nulls":5},"outros"]
[]
[]
[{"$nulls":5},"educação",null,"caridade",null,"poupança"]
[{"$nulls":5},"mensalidade",null,"presentes",null,"fundo de emergência"]
[{"$nulls":5},"livros",null,"doações",null,"transferência para poupança"]
[{"$nulls":5},"aulas de música",null,"dízimo e oferendas",null,"aposentadoria (fundos, INSS)"]
[{"$nulls":5},"outros",null,"outros",null,"investimentos"]
[{"$nulls":9},"faculdade"]
[{"$nulls":9},"outros"]
[]
[]
[{"$nulls":5},"obrigações",null,"diversão",null,"animais de estimação"]
[{"$nulls":5},"empréstimo estudantil",null,"vídeos/dvds",null,"ração"]
[{"$nulls":5},"outro empréstimo",null,"música",null,"veterinário"]
[{"$nulls":5},"cartão de crédito nº 1",null,"jogos",null,"brinquedos/suprimentos"]
[{"$nulls":5},"cartão de crédito nº 2",null,"locação",null,"outros"]
[{"$nulls":5},"cartão de crédito nº 3",null,"filmes/cinema"]
[{"$nulls":5},"pensão alimentícia",null,"shows/apresentações"]
[{"$nulls":5},"impostos federais",null,"livros"]
[{"$nulls":5},"IPTU",null,"hobbies"]
[{"$nulls":5},"impostos estaduais/municipais",null,"filme/fotos"]
[{"$nulls":5},"condomínio",null,"esportes"]
[{"$nulls":5},"honorários advocatícios",null,"recreação ao ar livre"]
[{"$nulls":5},"outros",null,"brinquedos/eletrônicos"]
[{"$nulls":7},"outros"]
[]
[{"$nulls":5},"assinaturas",null,"férias",null,"diversos"]
[{"$nulls":5},"jornal",null,"viagem",null,"tarifas bancárias"]
[{"$nulls":5},"revistas",null,"hospedagem",null,"correios"]
[{"$nulls":5},"taxas de adesão/contribuições",null,"alimentação",null,"outros"]
[{"$nulls":5},"academia/clube",null,"locação de automóvel"]
[{"$nulls":5},"outros",null,"entretenimento"]
[{"$nulls":7},"outros"]

{"sheet":"Dados do Gráfico","index":3,"n_rows":40,"n_cols":16,"rows_kept":40,"hidden":true}
[null,"*** Esta planilha deve permanecer oculta ***"]
[]
[]
[null,"período",3]
[]
[null,null,"jan","fev","mar","abr","mai","jun","jul","ago","set","out","nov","dez","ano","média"]
[null,{"$f":"LOWER(Orçamento!B127)","v":" "},{"$f":"SUM(tblCategoriaDespesa_15[jan])","v":0},{"$f":"SUM(tblCategoriaDespesa_15[feb])","v":0},{"$f":"SUM(tblCategoriaDespesa_15[mar])","v":0},{"$f":"SUM(tblCategoriaDespesa_15[apr])","v":0},{"$f":"SUM(tblCategoriaDespesa_15[may])","v":0},{"$f":"SUM(tblCategoriaDespesa_15[jun])","v":0},{"$f":"SUM(tblCategoriaDespesa_15[jul])","v":0},{"$f":"SUM(tblCategoriaDespesa_15[aug])","v":0},{"$f":"SUM(tblCategoriaDespesa_15[sep])","v":0},{"$f":"SUM(tblCategoriaDespesa_15[oct])","v":0},{"$f":"SUM(tblCategoriaDespesa_15[nov])","v":0},{"$f":"SUM(tblCategoriaDespesa_15[dec])","v":0},{"$f":"SUM(tblCategoriaDespesa_15[year])","v":0},{"$f":"SUM(tblCategoriaDespesa_15[avg])","v":0}]
[null,{"$f":"LOWER(Orçamento!B120)","v":" "},{"$f":"SUM(tblCategoriaDespesa_14[jan])","v":0},{"$f":"SUM(tblCategoriaDespesa_14[feb])","v":0},{"$f":"SUM(tblCategoriaDespesa_14[mar])","v":0},{"$f":"SUM(tblCategoriaDespesa_14[apr])","v":0},{"$f":"SUM(tblCategoriaDespesa_14[may])","v":0},{"$f":"SUM(tblCategoriaDespesa_14[jun])","v":0},{"$f":"SUM(tblCategoriaDespesa_14[jul])","v":0},{"$f":"SUM(tblCategoriaDespesa_14[aug])","v":0},{"$f":"SUM(tblCategoriaDespesa_14[sep])","v":0},{"$f":"SUM(tblCategoriaDespesa_14[oct])","v":0},{"$f":"SUM(tblCategoriaDespesa_14[nov])","v":0},{"$f":"SUM(tblCategoriaDespesa_14[dec])","v":0},{"$f":"SUM(tblCategoriaDespesa_14[year])","v":0},{"$f":"SUM(tblCategoriaDespesa_14[avg])","v":0}]
[null,null,{"$f":"SUM(tblCategoriaDespesa_13[jan])","v":0},{"$f":"SUM(tblCategoriaDespesa_13[feb])","v":0},{"$f":"SUM(tblCategoriaDespesa_13[mar])","v":0},{"$f":"SUM(tblCategoriaDespesa_13[apr])","v":0},{"$f":"SUM(tblCategoriaDespesa_13[may])","v":0},{"$f":"SUM(tblCategoriaDespesa_13[jun])","v":0},{"$f":"SUM(tblCategoriaDespesa_13[jul])","v":0},{"$f":"SUM(tblCategoriaDespesa_13[aug])","v":0},{"$f":"SUM(tblCategoriaDespesa_13[sep])","v":0},{"$f":"SUM(tblCategoriaDespesa_13[oct])","v":0},{"$f":"SUM(tblCategoriaDespesa_13[nov])","v":0},{"$f":"SUM(tblCategoriaDespesa_13[dec])","v":0},{"$f":"SUM(tblCategoriaDespesa_13[year])","v":0},{"$f":"SUM(tblCategoriaDespesa_13[avg])","v":0}]
[null,{"$f":"LOWER(Orçamento!B106)","v":" "},{"$f":"SUM(tblCategoriaDespesa_12[jan])","v":0},{"$f":"SUM(tblCategoriaDespesa_12[feb])","v":0},{"$f":"SUM(tblCategoriaDespesa_12[mar])","v":0},{"$f":"SUM(tblCategoriaDespesa_12[apr])","v":0},{"$f":"SUM(tblCategoriaDespesa_12[may])","v":0},{"$f":"SUM(tblCategoriaDespesa_12[jun])","v":0},{"$f":"SUM(tblCategoriaDespesa_12[jul])","v":0},{"$f":"SUM(tblCategoriaDespesa_12[aug])","v":0},{"$f":"SUM(tblCategoriaDespesa_12[sep])","v":0},{"$f":"SUM(tblCategoriaDespesa_12[oct])","v":0},{"$f":"SUM(tblCategoriaDespesa_12[nov])","v":0},{"$f":"SUM(tblCategoriaDespesa_12[dec])","v":0},{"$f":"SUM(tblCategoriaDespesa_12[year])","v":0},{"$f":"SUM(tblCategoriaDespesa_12[avg])","v":0}]
[null,{"$f":"LOWER(Orçamento!B99)","v":" "},{"$f":"SUM(tblCategoriaDespesa_11[jan])","v":0},{"$f":"SUM(tblCategoriaDespesa_11[feb])","v":0},{"$f":"SUM(tblCategoriaDespesa_11[mar])","v":0},{"$f":"SUM(tblCategoriaDespesa_11[apr])","v":0},{"$f":"SUM(tblCategoriaDespesa_11[may])","v":0},{"$f":"SUM(tblCategoriaDespesa_11[jun])","v":0},{"$f":"SUM(tblCategoriaDespesa_11[jul])","v":0},{"$f":"SUM(tblCategoriaDespesa_11[aug])","v":0},{"$f":"SUM(tblCategoriaDespesa_11[sep])","v":0},{"$f":"SUM(tblCategoriaDespesa_11[oct])","v":0},{"$f":"SUM(tblCategoriaDespesa_11[nov])","v":0},{"$f":"SUM(tblCategoriaDespesa_11[dec])","v":0},{"$f":"SUM(tblCategoriaDespesa_11[year])","v":0},{"$f":"SUM(tblCategoriaDespesa_11[avg])","v":0}]
[null,{"$f":"LOWER(Orçamento!B92)","v":"obrigações"},{"$f":"SUM(tblCategoriaDespesa_10[jan])","v":650},{"$f":"SUM(tblCategoriaDespesa_10[feb])","v":200},{"$f":"SUM(tblCategoriaDespesa_10[mar])","v":200},{"$f":"SUM(tblCategoriaDespesa_10[apr])","v":650},{"$f":"SUM(tblCategoriaDespesa_10[may])","v":200},{"$f":"SUM(tblCategoriaDespesa_10[jun])","v":200},{"$f":"SUM(tblCategoriaDespesa_10[jul])","v":650},{"$f":"SUM(tblCategoriaDespesa_10[aug])","v":200},{"$f":"SUM(tblCategoriaDespesa_10[sep])","v":200},{"$f":"SUM(tblCategoriaDespesa_10[oct])","v":650},{"$f":"SUM(tblCategoriaDespesa_10[nov])","v":200},{"$f":"SUM(tblCategoriaDespesa_10[dec])","v":200},{"$f":"SUM(tblCategoriaDespesa_10[year])","v":{"v":4200,"d":"4,200"}},{"$f":"SUM(tblCategoriaDespesa_10[avg])","v":350}]
[null,{"$f":"LOWER(Orçamento!B85)","v":"poupança"},{"$f":"SUM(tblCategoriaDespesa_09[jan])","v":800},{"$f":"SUM(tblCategoriaDespesa_09[feb])","v":800},{"$f":"SUM(tblCategoriaDespesa_09[mar])","v":800},{"$f":"SUM(tblCategoriaDespesa_09[apr])","v":800},{"$f":"SUM(tblCategoriaDespesa_09[may])","v":800},{"$f":"SUM(tblCategoriaDespesa_09[jun])","v":500},{"$f":"SUM(tblCategoriaDespesa_09[jul])","v":500},{"$f":"SUM(tblCategoriaDespesa_09[aug])","v":500},{"$f":"SUM(tblCategoriaDespesa_09[sep])","v":800},{"$f":"SUM(tblCategoriaDespesa_09[oct])","v":800},{"$f":"SUM(tblCategoriaDespesa_09[nov])","v":800},{"$f":"SUM(tblCategoriaDespesa_09[dec])","v":800},{"$f":"SUM(tblCategoriaDespesa_09[year])","v":{"v":8700,"d":"8,700"}},{"$f":"SUM(tblCategoriaDespesa_09[avg])","v":725}]
[null,{"$f":"LOWER(Orçamento!B78)","v":"caridade"},{"$f":"SUM(tblCategoriaDespesa_08[jan])","v":0},{"$f":"SUM(tblCategoriaDespesa_08[feb])","v":100},{"$f":"SUM(tblCategoriaDespesa_08[mar])","v":100},{"$f":"SUM(tblCategoriaDespesa_08[apr])","v":100},{"$f":"SUM(tblCategoriaDespesa_08[may])","v":100},{"$f":"SUM(tblCategoriaDespesa_08[jun])","v":100},{"$f":"SUM(tblCategoriaDespesa_08[jul])","v":100},{"$f":"SUM(tblCategoriaDespesa_08[aug])","v":100},{"$f":"SUM(tblCategoriaDespesa_08[sep])","v":100},{"$f":"SUM(tblCategoriaDespesa_08[oct])","v":100},{"$f":"SUM(tblCategoriaDespesa_08[nov])","v":100},{"$f":"SUM(tblCategoriaDespesa_08[dec])","v":100},{"$f":"SUM(tblCategoriaDespesa_08[year])","v":{"v":1100,"d":"1,100"}},{"$f":"SUM(tblCategoriaDespesa_08[avg])","v":{"v":91.66666666666666,"d":"92"}}]
[null,{"$f":"LOWER(Orçamento!B71)","v":"educação"},{"$f":"SUM(tblCategoriaDespesa_07[jan])","v":0},{"$f":"SUM(tblCategoriaDespesa_07[feb])","v":0},{"$f":"SUM(tblCategoriaDespesa_07[mar])","v":625},{"$f":"SUM(tblCategoriaDespesa_07[apr])","v":0},{"$f":"SUM(tblCategoriaDespesa_07[may])","v":0},{"$f":"SUM(tblCategoriaDespesa_07[jun])","v":0},{"$f":"SUM(tblCategoriaDespesa_07[jul])","v":0},{"$f":"SUM(tblCategoriaDespesa_07[aug])","v":0},{"$f":"SUM(tblCategoriaDespesa_07[sep])","v":625},{"$f":"SUM(tblCategoriaDespesa_07[oct])","v":0},{"$f":"SUM(tblCategoriaDespesa_07[nov])","v":0},{"$f":"SUM(tblCategoriaDespesa_07[dec])","v":0},{"$f":"SUM(tblCategoriaDespesa_07[year])","v":{"v":1250,"d":"1,250"}},{"$f":"SUM(tblCategoriaDespesa_07[avg])","v":{"v":104.16666666666667,"d":"104"}}]
[null,{"$f":"LOWER(Orçamento!B64)","v":"seguro"},{"$f":"SUM(tblCategoriaDespesa_06[jan])","v":975},{"$f":"SUM(tblCategoriaDespesa_06[feb])","v":975},{"$f":"SUM(tblCategoriaDespesa_06[mar])","v":975},{"$f":"SUM(tblCategoriaDespesa_06[apr])","v":975},{"$f":"SUM(tblCategoriaDespesa_06[may])","v":975},{"$f":"SUM(tblCategoriaDespesa_06[jun])","v":975},{"$f":"SUM(tblCategoriaDespesa_06[jul])","v":975},{"$f":"SUM(tblCategoriaDespesa_06[aug])","v":975},{"$f":"SUM(tblCategoriaDespesa_06[sep])","v":975},{"$f":"SUM(tblCategoriaDespesa_06[oct])","v":975},{"$f":"SUM(tblCategoriaDespesa_06[nov])","v":975},{"$f":"SUM(tblCategoriaDespesa_06[dec])","v":975},{"$f":"SUM(tblCategoriaDespesa_06[year])","v":{"v":11700,"d":"11,700"}},{"$f":"SUM(tblCategoriaDespesa_06[avg])","v":975}]
[null,{"$f":"LOWER(Orçamento!B57)","v":"saúde"},{"$f":"SUM(tblCategoriaDespesa_05[jan])","v":25},{"$f":"SUM(tblCategoriaDespesa_05[feb])","v":60},{"$f":"SUM(tblCategoriaDespesa_05[mar])","v":175},{"$f":"SUM(tblCategoriaDespesa_05[apr])","v":25},{"$f":"SUM(tblCategoriaDespesa_05[may])","v":60},{"$f":"SUM(tblCategoriaDespesa_05[jun])","v":60},{"$f":"SUM(tblCategoriaDespesa_05[jul])","v":60},{"$f":"SUM(tblCategoriaDespesa_05[aug])","v":25},{"$f":"SUM(tblCategoriaDespesa_05[sep])","v":175},{"$f":"SUM(tblCategoriaDespesa_05[oct])","v":60},{"$f":"SUM(tblCategoriaDespesa_05[nov])","v":25},{"$f":"SUM(tblCategoriaDespesa_05[dec])","v":25},{"$f":"SUM(tblCategoriaDespesa_05[year])","v":775},{"$f":"SUM(tblCategoriaDespesa_05[avg])","v":{"v":64.58333333333334,"d":"65"}}]
[null,{"$f":"LOWER(Orçamento!B48)","v":"transporte"},{"$f":"SUM(tblCategoriaDespesa_04[jan])","v":{"v":1110,"d":"1,110"}},{"$f":"SUM(tblCategoriaDespesa_04[feb])","v":{"v":1025,"d":"1,025"}},{"$f":"SUM(tblCategoriaDespesa_04[mar])","v":925},{"$f":"SUM(tblCategoriaDespesa_04[apr])","v":{"v":1025,"d":"1,025"}},{"$f":"SUM(tblCategoriaDespesa_04[may])","v":{"v":1325,"d":"1,325"}},{"$f":"SUM(tblCategoriaDespesa_04[jun])","v":{"v":1200,"d":"1,200"}},{"$f":"SUM(tblCategoriaDespesa_04[jul])","v":{"v":1100,"d":"1,100"}},{"$f":"SUM(tblCategoriaDespesa_04[aug])","v":{"v":1200,"d":"1,200"}},{"$f":"SUM(tblCategoriaDespesa_04[sep])","v":{"v":1150,"d":"1,150"}},{"$f":"SUM(tblCategoriaDespesa_04[oct])","v":{"v":1025,"d":"1,025"}},{"$f":"SUM(tblCategoriaDespesa_04[nov])","v":925},{"$f":"SUM(tblCategoriaDespesa_04[dec])","v":925},{"$f":"SUM(tblCategoriaDespesa_04[year])","v":{"v":12935,"d":"12,935"}},{"$f":"SUM(tblCategoriaDespesa_04[avg])","v":{"v":1077.9166666666665,"d":"1,078"}}]
[null,{"$f":"LOWER(Orçamento!B39)","v":"filhos"},{"$f":"SUM(tblCategoriaDespesa_03[jan])","v":{"v":2373,"d":"2,373"}},{"$f":"SUM(tblCategoriaDespesa_03[feb])","v":500},{"$f":"SUM(tblCategoriaDespesa_03[mar])","v":350},{"$f":"SUM(tblCategoriaDespesa_03[apr])","v":250},{"$f":"SUM(tblCategoriaDespesa_03[may])","v":350},{"$f":"SUM(tblCategoriaDespesa_03[jun])","v":450},{"$f":"SUM(tblCategoriaDespesa_03[jul])","v":200},{"$f":"SUM(tblCategoriaDespesa_03[aug])","v":545},{"$f":"SUM(tblCategoriaDespesa_03[sep])","v":350},{"$f":"SUM(tblCategoriaDespesa_03[oct])","v":350},{"$f":"SUM(tblCategoriaDespesa_03[nov])","v":250},{"$f":"SUM(tblCategoriaDespesa_03[dec])","v":350},{"$f":"SUM(tblCategoriaDespesa_03[year])","v":{"v":6318,"d":"6,318"}},{"$f":"SUM(tblCategoriaDespesa_03[avg])","v":{"v":526.5,"d":"527"}}]
[null,{"$f":"LOWER(Orçamento!B30)","v":"despesas diárias"},{"$f":"SUM(tblCategoriaDespesa_02[jan])","v":795},{"$f":"SUM(tblCategoriaDespesa_02[feb])","v":375},{"$f":"SUM(tblCategoriaDespesa_02[mar])","v":550},{"$f":"SUM(tblCategoriaDespesa_02[apr])","v":825},{"$f":"SUM(tblCategoriaDespesa_02[may])","v":500},{"$f":"SUM(tblCategoriaDespesa_02[jun])","v":450},{"$f":"SUM(tblCategoriaDespesa_02[jul])","v":875},{"$f":"SUM(tblCategoriaDespesa_02[aug])","v":475},{"$f":"SUM(tblCategoriaDespesa_02[sep])","v":400},{"$f":"SUM(tblCategoriaDespesa_02[oct])","v":825},{"$f":"SUM(tblCategoriaDespesa_02[nov])","v":575},{"$f":"SUM(tblCategoriaDespesa_02[dec])","v":375},{"$f":"SUM(tblCategoriaDespesa_02[year])","v":{"v":7020,"d":"7,020"}},{"$f":"SUM(tblCategoriaDespesa_02[avg])","v":585}]
[null,{"$f":"LOWER(Orçamento!B21)","v":"casa"},{"$f":"SUM(tblCategoriaDespesa_01[jan])","v":{"v":1208,"d":"1,208"}},{"$f":"SUM(tblCategoriaDespesa_01[feb])","v":{"v":1208,"d":"1,208"}},{"$f":"SUM(tblCategoriaDespesa_01[mar])","v":{"v":1233,"d":"1,233"}},{"$f":"SUM(tblCategoriaDespesa_01[apr])","v":{"v":1208,"d":"1,208"}},{"$f":"SUM(tblCategoriaDespesa_01[may])","v":{"v":1158,"d":"1,158"}},{"$f":"SUM(tblCategoriaDespesa_01[jun])","v":{"v":1183,"d":"1,183"}},{"$f":"SUM(tblCategoriaDespesa_01[jul])","v":{"v":1283,"d":"1,283"}},{"$f":"SUM(tblCategoriaDespesa_01[aug])","v":{"v":1333,"d":"1,333"}},{"$f":"SUM(tblCategoriaDespesa_01[sep])","v":{"v":1208,"d":"1,208"}},{"$f":"SUM(tblCategoriaDespesa_01[oct])","v":{"v":1158,"d":"1,158"}},{"$f":"SUM(tblCategoriaDespesa_01[nov])","v":{"v":1208,"d":"1,208"}},{"$f":"SUM(tblCategoriaDespesa_01[dec])","v":{"v":1208,"d":"1,208"}},{"$f":"SUM(tblCategoriaDespesa_01[year])","v":{"v":14596,"d":"14,596"}},{"$f":"SUM(tblCategoriaDespesa_01[avg])","v":{"v":1216.3333333333335,"d":"1,216"}}]
[]
[]
[]
[]
[null,"Fluxo de Caixa Acumulado",{"$f":"SUM(Orçamento!$C$8:C$8)","v":{"v":-3714,"d":"-3,714"}},{"$f":"SUM(Orçamento!$C$8:D$8)","v":76},{"$f":"SUM(Orçamento!$C$8:E$8)","v":{"v":-1857,"d":"-1,857"}},{"$f":"SUM(Orçamento!$C$8:F$8)","v":{"v":-3670,"d":"-3,670"}},{"$f":"SUM(Orçamento!$C$8:G$8)","v":-138},{"$f":"SUM(Orçamento!$C$8:H$8)","v":{"v":-3731,"d":"-3,731"}},{"$f":"SUM(Orçamento!$C$8:I$8)","v":{"v":-7974,"d":"-7,974"}},{"$f":"SUM(Orçamento!$C$8:J$8)","v":{"v":-6827,"d":"-6,827"}},{"$f":"SUM(Orçamento!$C$8:K$8)","v":{"v":-8810,"d":"-8,810"}},{"$f":"SUM(Orçamento!$C$8:L$8)","v":{"v":-10753,"d":"-10,753"}},{"$f":"SUM(Orçamento!$C$8:M$8)","v":{"v":-6811,"d":"-6,811"}},{"$f":"SUM(Orçamento!$C$8:N$8)","v":{"v":-7769,"d":"-7,769"}},{"$f":"SUM(Orçamento!$C$8:O$8)","v":{"v":-15538,"d":"-15,538"}}]
[]
[null,"Fluxo de Caixa Anual Positivo",{"$f":"IF(Orçamento!C$8<0,NA(),IF(período+2<>COLUMN(Orçamento!C$8),NA(),Orçamento!C$8))","v":{"$error":"#N/A"}},{"$f":"IF(Orçamento!D$8<0,NA(),IF(período+2<>COLUMN(Orçamento!D$8),NA(),Orçamento!D$8))","v":{"$error":"#N/A"}},{"$f":"IF(Orçamento!E$8<0,NA(),IF(período+2<>COLUMN(Orçamento!E$8),NA(),Orçamento!E$8))","v":{"$error":"#N/A"}},{"$f":"IF(Orçamento!F$8<0,NA(),IF(período+2<>COLUMN(Orçamento!F$8),NA(),Orçamento!F$8))","v":{"$error":"#N/A"}},{"$f":"IF(Orçamento!G$8<0,NA(),IF(período+2<>COLUMN(Orçamento!G$8),NA(),Orçamento!G$8))","v":{"$error":"#N/A"}},{"$f":"IF(Orçamento!H$8<0,NA(),IF(período+2<>COLUMN(Orçamento!H$8),NA(),Orçamento!H$8))","v":{"$error":"#N/A"}},{"$f":"IF(Orçamento!I$8<0,NA(),IF(período+2<>COLUMN(Orçamento!I$8),NA(),Orçamento!I$8))","v":{"$error":"#N/A"}},{"$f":"IF(Orçamento!J$8<0,NA(),IF(período+2<>COLUMN(Orçamento!J$8),NA(),Orçamento!J$8))","v":{"$error":"#N/A"}},{"$f":"IF(Orçamento!K$8<0,NA(),IF(período+2<>COLUMN(Orçamento!K$8),NA(),Orçamento!K$8))","v":{"$error":"#N/A"}},{"$f":"IF(Orçamento!L$8<0,NA(),IF(período+2<>COLUMN(Orçamento!L$8),NA(),Orçamento!L$8))","v":{"$error":"#N/A"}},{"$f":"IF(Orçamento!M$8<0,NA(),IF(período+2<>COLUMN(Orçamento!M$8),NA(),Orçamento!M$8))","v":{"$error":"#N/A"}},{"$f":"IF(Orçamento!N$8<0,NA(),IF(período+2<>COLUMN(Orçamento!N$8),NA(),Orçamento!N$8))","v":{"$error":"#N/A"}},{"$f":"IF(Orçamento!O$8<0,NA(),IF(período+2<>COLUMN(Orçamento!O$8),NA(),Orçamento!O$8))","v":{"$error":"#N/A"}}]
[null,"Fluxo de Caixa Anual Negativo",{"$f":"IF(Orçamento!C$8>=0,NA(),IF(período+2<>COLUMN(Orçamento!C$8),NA(),Orçamento!C$8))","v":{"$error":"#N/A"}},{"$f":"IF(Orçamento!D$8>=0,NA(),IF(período+2<>COLUMN(Orçamento!D$8),NA(),Orçamento!D$8))","v":{"$error":"#N/A"}},{"$f":"IF(Orçamento!E$8>=0,NA(),IF(período+2<>COLUMN(Orçamento!E$8),NA(),Orçamento!E$8))","v":{"v":-1933,"d":"-1,933"}},{"$f":"IF(Orçamento!F$8>=0,NA(),IF(período+2<>COLUMN(Orçamento!F$8),NA(),Orçamento!F$8))","v":{"$error":"#N/A"}},{"$f":"IF(Orçamento!G$8>=0,NA(),IF(período+2<>COLUMN(Orçamento!G$8),NA(),Orçamento!G$8))","v":{"$error":"#N/A"}},{"$f":"IF(Orçamento!H$8>=0,NA(),IF(período+2<>COLUMN(Orçamento!H$8),NA(),Orçamento!H$8))","v":{"$error":"#N/A"}},{"$f":"IF(Orçamento!I$8>=0,NA(),IF(período+2<>COLUMN(Orçamento!I$8),NA(),Orçamento!I$8))","v":{"$error":"#N/A"}},{"$f":"IF(Orçamento!J$8>=0,NA(),IF(período+2<>COLUMN(Orçamento!J$8),NA(),Orçamento!J$8))","v":{"$error":"#N/A"}},{"$f":"IF(Orçamento!K$8>=0,NA(),IF(período+2<>COLUMN(Orçamento!K$8),NA(),Orçamento!K$8))","v":{"$error":"#N/A"}},{"$f":"IF(Orçamento!L$8>=0,NA(),IF(período+2<>COLUMN(Orçamento!L$8),NA(),Orçamento!L$8))","v":{"$error":"#N/A"}},{"$f":"IF(Orçamento!M$8>=0,NA(),IF(período+2<>COLUMN(Orçamento!M$8),NA(),Orçamento!M$8))","v":{"$error":"#N/A"}},{"$f":"IF(Orçamento!N$8>=0,NA(),IF(período+2<>COLUMN(Orçamento!N$8),NA(),Orçamento!N$8))","v":{"$error":"#N/A"}},{"$f":"IF(Orçamento!O$8>=0,NA(),IF(período+2<>COLUMN(Orçamento!O$8),NA(),Orçamento!O$8))","v":{"$error":"#N/A"}}]
{"$rows_empty":7}
[null,{"$f":"LOWER(exibir_período_long)","v":"março"}]
[null,{"$f":"exibir_período_long & \" renda\"","v":"março renda"},{"$f":"INDEX(Orçamento!$C$6:$P$6,,período)","v":{"v":4000,"d":"R$ 4,000"}}]
[null,{"$f":"exibir_período_long & \" despesas: \" & TEXT(INDEX(Orçamento!$C$7:$P$7,,período),\"R$ #.##0\")","v":"março despesas: R$ 5.933"},{"$f":"INDEX(Orçamento!$C$7:$P$7,,período)","v":{"v":5933,"d":"R$ 5,933"}}]
[null,{"$f":"exibir_período_long & \" fluxo de caixa\"","v":"março fluxo de caixa"},{"$f":"ABS(INDEX(Orçamento!$C$8:$P$8,,período))","v":{"v":1933,"d":"R$ 1,933"}},{"$f":"REPT(\"-\",INDEX(Orçamento!$C$8:$P$8,,período)<0)","v":"-"}]